fUST/lending_fUST_20250701
["ID","MTS","AMOUNT","RATE_DAILY","PERIOD"]
[368746766,1751343537628,-300.0,0.00018159,2]
[368746767,1751343537662,-300.0,0.0001816,2]
[368746768,1751343537694,-1200.0,0.0001816,2]
[368746769,1751343537727,-1200.0,0.0001816,2]
[368746770,1751343537761,-282.8229398,0.0001816,2]
[368746771,1751343537794,-500.0,0.0001816,2]
[368746772,1751343537826,-500.0,0.0001816,2]
[368746773,1751343537858,-450.54870971,0.0001816,2]
[368746774,1751343537889,-106.62835049,0.0001816,2]
[368746775,1751343542559,-377.26616869,0.0001816,2]
[368746776,1751343542593,-460.0,0.0001816,2]
[368746777,1751343542626,-460.0,0.0001816,2]
[368746778,1751343542661,-427.80036726,0.0001816,2]
[368746779,1751343542694,-460.0,0.0001816,2]
[368746780,1751343542727,-460.0,0.0001816,2]
[368746781,1751343542757,-460.0,0.0001816,2]
[368746782,1751343542788,-460.0,0.0001816,2]
[368746783,1751343542820,-460.0,0.0001816,2]
[368746784,1751343542851,-460.0,0.0001816,2]
[368746785,1751343542882,-460.0,0.0001816,2]
[368746786,1751343542912,-54.93346405,0.0001816,2]
[368746787,1751343552400,-300.0,0.00018159,2]
[368746788,1751343552431,-405.71548714,0.0001816,2]
[368746789,1751343552462,-460.0,0.0001816,2]
[368746790,1751343552493,-460.0,0.0001816,2]
[368746791,1751343552528,-352.42171012,0.0001816,2]
[368746792,1751343552558,-460.0,0.0001816,2]
[368746793,1751343552589,-460.0,0.00018161,2]
[368746794,1751343552620,-460.0,0.00018161,2]
[368746795,1751343552654,-67.86280274,0.00018161,2]
[368746796,1751343593900,-209.64643875,0.00018063,2]
[368746797,1751343597449,-221.53392124,0.00018063,2]
[368746798,1751343600877,-180.17656023,0.00018063,2]
[368746799,1751343603090,-154.85777253,0.00018063,2]
[368746800,1751343604846,-8.95728757,0.00018063,2]
[368746803,1751343729875,-187.5798374,0.0001806,2]
[368746804,1751343729899,-103.07375835,0.00018061,2]
[368746805,1751343731552,-151.6650304,0.00018061,2]
[368746806,1751343733843,-222.01,0.00018061,2]
[368746807,1751343735517,-82.37317189,0.00018061,2]
[368746808,1751343751351,2729.25412323,0.00017208,2]
[368746809,1751343751683,2729.25412323,0.00017368,2]
[368746810,1751343752020,2729.25412323,0.00017564,2]
[368746811,1751343764348,160.0,0.00016438,3]
[368746812,1751343783776,1597.8488749,0.00017162,2]
[368746815,1751343934450,-167.48242776,0.00018062,2]
[368746816,1751343937036,-182.48854166,0.00018062,2]
[368746817,1751343940789,-180.18769723,0.00018062,2]
[368746818,1751343942337,-89.97891763,0.00018062,2]
[368746819,1751343995151,-151.37019777,0.00018152,2]
[368746820,1751343995172,-169.85178669,0.00018158,2]
[368746821,1751344014094,-159.71187015,0.0001806,2]
[368746822,1751344017808,-161.90600269,0.0001806,2]
[368746823,1751344019668,-161.90600264,0.0001806,2]
[368746824,1751344021914,-5.70784008,0.0001806,2]
[368746825,1751344041080,-130.14821331,0.00018158,2]
[368746826,1751344041102,-468.0,0.00018158,2]
[368746827,1751344041125,-300.0,0.00018158,2]
[368746828,1751344041146,-1381.848,0.00018159,2]
[368746829,1751344041170,-730.83300382,0.00018159,2]
[368746830,1751344084195,-152.17318442,0.0001806,2]
[368746831,1751344084825,157.0,0.00016438,3]
[368746832,1751344085785,-69.42247656,0.0001806,2]
[368746840,1751344183484,300.773105,0.00013699,2]
[368746841,1751344192672,-158.53197942,0.00018158,2]
[368746842,1751344192697,-300.0,0.00018158,2]
[368746843,1751344192720,-460.0,0.00018158,2]
[368746844,1751344192742,-227.16802058,0.00018158,2]
[368746845,1751344199620,-160.0,0.00018061,2]
[368746846,1751344201817,-196.57091832,0.00018061,2]
[368746847,1751344214971,-300.0,0.0001806,2]
[368746848,1751344214998,-4.35724928,0.0001806,2]
[368746849,1751344217568,-284.53442527,0.0001806,2]
[368746850,1751344221934,-181.40206721,0.0001806,2]
[368746851,1751344225290,-195.38368025,0.0001806,2]
[368746900,1751344232552,-534.32257799,0.0001806,2]
[368746902,1751344232562,-369643.42908168,0.00018061,2]
[368746904,1751344232571,-40.167859,0.00018158,2]
[368746906,1751344232582,-460.0,0.00018158,2]
[368746908,1751344232591,-460.0,0.00018158,2]
[368746910,1751344232603,-460.0,0.00018158,2]
[368746912,1751344232612,-460.0,0.00018158,2]
[368746914,1751344232622,-362.60914974,0.00018158,2]
[368746916,1751344232631,-500.0,0.00018158,2]
[368746918,1751344232642,-460.0,0.00018158,2]
[368746921,1751344232651,-463.72704087,0.00018158,2]
[368746924,1751344232661,-522.77007586,0.00018158,2]
[368746927,1751344232671,-460.0,0.00018158,2]
[368746930,1751344232680,-460.0,0.00018158,2]
[368746933,1751344232690,-460.0,0.00018158,2]
[368746936,1751344232699,-460.0,0.00018158,2]
[368746939,1751344232709,-460.0,0.00018159,2]
[368746941,1751344232719,-460.0,0.00018159,2]
[368746943,1751344232728,-464.59204951,0.00018159,2]
[368746945,1751344232738,-460.0,0.00018159,2]
[368746947,1751344232748,-500.0,0.00018159,2]
[368746949,1751344232758,-416.45354708,0.00018159,2]
[368746951,1751344232768,-460.0,0.00018159,2]
[368746953,1751344232778,-460.0,0.00018159,2]
[368746955,1751344232787,-460.0,0.00018159,2]
[368746957,1751344232798,-460.0,0.00018159,2]
[368746959,1751344232807,-460.0,0.00018159,2]
[368746961,1751344232817,-460.0,0.00018159,2]
[368746963,1751344232827,-460.0,0.00018159,2]
[368746965,1751344232836,-460.0,0.00018159,2]
[368746967,1751344232846,-460.0,0.00018159,2]
[368746969,1751344232855,-460.0,0.00018159,2]
[368746971,1751344232867,-460.0,0.00018159,2]
[368746973,1751344232877,-461.20839505,0.00018159,2]
[368746975,1751344232886,-1987.86,0.00018159,2]
[368746977,1751344232896,-706.49,0.00018159,2]
[368746979,1751344232906,-460.0,0.00018159,2]
[368746981,1751344232915,-460.0,0.00018159,2]
[368746983,1751344232925,-460.0,0.00018159,2]
[368746985,1751344232936,-460.0,0.00018159,2]
[368746988,1751344232949,-1636.02,0.00018159,2]
[368746990,1751344232959,-460.0,0.00018159,2]
[368746992,1751344232969,-1974.72,0.00018159,2]
[368746994,1751344232979,-460.0,0.00018159,2]
[368746996,1751344232989,-460.0,0.00018159,2]
[368746997,1751344232999,-460.0,0.00018159,2]
[368746999,1751344233010,-460.0,0.00018159,2]
[368747002,1751344233020,-460.0,0.00018159,2]
[368747004,1751344233030,-460.0,0.00018159,2]
[368747006,1751344233040,-460.0,0.00018159,2]
[368747008,1751344233050,-460.0,0.00018159,2]
[368747010,1751344233060,-460.0,0.00018159,2]
[368747012,1751344233070,-1802.8,0.00018159,2]
[368747014,1751344233080,-460.0,0.00018159,2]
[368747016,1751344233091,-460.0,0.00018159,2]
[368747018,1751344233103,-2358.11,0.00018159,2]
[368747020,1751344233114,-460.0,0.00018159,2]
[368747022,1751344233124,-460.0,0.00018159,2]
[368747024,1751344233134,-460.0,0.00018159,2]
[368747026,1751344233144,-460.0,0.00018159,2]
[368747028,1751344233154,-460.0,0.00018159,2]
[368747030,1751344233166,-460.0,0.00018159,2]
[368747032,1751344233176,-1525.05,0.00018159,2]
[368747034,1751344233185,-460.0,0.00018159,2]
[368747035,1751344233195,-460.0,0.00018159,2]
[368747037,1751344233205,-743.78,0.00018159,2]
[368747038,1751344233214,-1345.14,0.00018159,2]
[368747040,1751344233226,-460.0,0.00018159,2]
[368747041,1751344233236,-460.0,0.00018159,2]
[368747042,1751344233246,-174.59775518,0.00018159,2]
[368747043,1751344233256,-200.0,0.00018159,2]
[368747044,1751344233266,-173.53004514,0.00018159,2]
[368747045,1751344233276,-347.45608582,0.00018159,2]
[368747046,1751344233285,-250.0,0.00018159,2]
[368747047,1751344233295,-460.0,0.00018159,2]
[368747048,1751344233305,-460.0,0.00018159,2]
[368747049,1751344233315,-460.0,0.00018159,2]
[368747050,1751344233325,-460.0,0.00018159,2]
[368747051,1751344233334,-460.0,0.00018159,2]
[368747052,1751344233344,-460.0,0.00018159,2]
[368747053,1751344233354,-460.0,0.00018159,2]
[368747054,1751344233364,-460.0,0.00018159,2]
[368747055,1751344233374,-460.0,0.0001816,2]
[368747056,1751344233384,-460.66883078,0.0001816,2]
[368747057,1751344233393,-460.0,0.0001816,2]
[368747058,1751344233403,-460.0,0.0001816,2]
[368747059,1751344233413,-460.0,0.0001816,2]
[368747060,1751344233422,-460.0,0.0001816,2]
[368747061,1751344233433,-461.88433371,0.0001816,2]
[368747062,1751344233443,-460.0,0.0001816,2]
[368747063,1751344233452,-460.0,0.0001816,2]
[368747064,1751344233571,-460.0,0.0001816,2]
[368747065,1751344233582,-202.34832037,0.0001816,2]
[368747066,1751344233591,-460.0,0.0001816,2]
[368747067,1751344233601,-460.0,0.0001816,2]
[368747068,1751344233612,-460.0,0.0001816,2]
[368747069,1751344233622,-460.0,0.0001816,2]
[368747070,1751344233632,-460.0,0.0001816,2]
[368747071,1751344233642,-460.0,0.0001816,2]
[368747072,1751344233651,-460.0,0.0001816,2]
[368747073,1751344233661,-460.0,0.0001816,2]
[368747074,1751344233672,-460.0,0.0001816,2]
[368747075,1751344233682,-460.0,0.0001816,2]
[368747076,1751344233691,-382.93501563,0.0001816,2]
[368747077,1751344233701,-460.0,0.0001816,2]
[368747078,1751344233711,-460.0,0.0001816,2]
[368747079,1751344233720,-460.0,0.0001816,2]
[368747080,1751344233730,-460.0,0.0001816,2]
[368747081,1751344233740,-460.0,0.0001816,2]
[368747082,1751344233749,-460.0,0.0001816,2]
[368747083,1751344233759,-460.0,0.0001816,2]
[368747084,1751344233769,-460.0,0.0001816,2]
[368747085,1751344233779,-460.0,0.0001816,2]
[368747086,1751344233789,-460.0,0.0001816,2]
[368747087,1751344233799,-460.0,0.0001816,2]
[368747088,1751344233810,-460.0,0.0001816,2]
[368747089,1751344233820,-501.18933237,0.0001816,2]
[368747090,1751344233830,-460.0,0.0001816,2]
[368747091,1751344233843,-460.0,0.0001816,2]
[368747092,1751344233853,-460.0,0.0001816,2]
[368747093,1751344233863,-460.0,0.0001816,2]
[368747094,1751344233872,-460.0,0.0001816,2]
[368747095,1751344233882,-460.0,0.0001816,2]
[368747096,1751344233892,-460.0,0.0001816,2]
[368747097,1751344233902,-460.0,0.0001816,2]
[368747098,1751344233911,-460.0,0.0001816,2]
[368747099,1751344233921,-460.0,0.0001816,2]
[368747100,1751344233930,-429.04630569,0.0001816,2]
[368747101,1751344233944,-500.0,0.0001816,2]
[368747102,1751344233954,-500.0,0.0001816,2]
[368747103,1751344233964,-460.37683629,0.0001816,2]
[368747104,1751344233975,-463.1194358,0.0001816,2]
[368747105,1751344233986,-460.0,0.0001816,2]
[368747106,1751344233996,-460.0,0.0001816,2]
[368747107,1751344234006,-460.62769917,0.0001816,2]
[368747108,1751344234017,-460.0,0.0001816,2]
[368747109,1751344234027,-460.0,0.0001816,2]
[368747110,1751344234037,-462.81500559,0.0001816,2]
[368747111,1751344234048,-460.0,0.0001816,2]
[368747112,1751344234058,-460.0,0.0001816,2]
[368747113,1751344234067,-460.0,0.0001816,2]
[368747114,1751344234077,-460.0,0.0001816,2]
[368747115,1751344234087,-500.0,0.0001816,2]
[368747116,1751344234098,-500.0,0.0001816,2]
[368747117,1751344234108,-460.0,0.0001816,2]
[368747118,1751344234118,-460.0,0.0001816,2]
[368747119,1751344234128,-460.0,0.0001816,2]
[368747120,1751344234138,-460.0,0.0001816,2]
[368747121,1751344234147,-460.0,0.0001816,2]
[368747122,1751344234157,-460.0,0.0001816,2]
[368747123,1751344234167,-460.0,0.0001816,2]
[368747124,1751344234176,-460.0,0.0001816,2]
[368747125,1751344234186,-460.0,0.0001816,2]
[368747126,1751344234195,-460.0,0.0001816,2]
[368747127,1751344234204,-460.0,0.0001816,2]
[368747128,1751344234214,-460.0,0.0001816,2]
[368747129,1751344234224,-460.0,0.0001816,2]
[368747130,1751344234234,-460.0,0.0001816,2]
[368747131,1751344234244,-460.0,0.0001816,2]
[368747132,1751344234255,-460.0,0.0001816,2]
[368747133,1751344234265,-673.34,0.0001816,2]
[368747134,1751344234275,-423.61709059,0.0001816,2]
[368747135,1751344234285,-460.0,0.0001816,2]
[368747136,1751344234295,-460.0,0.0001816,2]
[368747137,1751344234305,-460.0,0.0001816,2]
[368747138,1751344234315,-460.0,0.0001816,2]
[368747139,1751344234324,-460.0,0.0001816,2]
[368747140,1751344234334,-460.0,0.0001816,2]
[368747141,1751344234343,-460.0,0.0001816,2]
[368747142,1751344234353,-1372.82,0.0001816,2]
[368747143,1751344234362,-460.0,0.0001816,2]
[368747144,1751344234373,-460.0,0.0001816,2]
[368747145,1751344234383,-460.0,0.0001816,2]
[368747146,1751344234392,-460.0,0.0001816,2]
[368747147,1751344234402,-460.0,0.0001816,2]
[368747148,1751344234412,-460.0,0.0001816,2]
[368747149,1751344234421,-460.0,0.0001816,2]
[368747150,1751344234431,-868.88,0.0001816,2]
[368747151,1751344234441,-868.88,0.0001816,2]
[368747152,1751344234451,-868.88,0.0001816,2]
[368747153,1751344234464,-460.0,0.0001816,2]
[368747154,1751344234481,-460.0,0.0001816,2]
[368747155,1751344234498,-460.0,0.0001816,2]
[368747156,1751344234512,-462.03348361,0.0001816,2]
[368747157,1751344234525,-460.0,0.0001816,2]
[368747158,1751344234540,-461.80112082,0.0001816,2]
[368747159,1751344234555,-460.0,0.0001816,2]
[368747160,1751344234571,-460.0,0.0001816,2]
[368747161,1751344234586,-460.0,0.0001816,2]
[368747162,1751344234602,-500.0,0.0001816,2]
[368747163,1751344234617,-200.61585049,0.0001816,2]
[368747164,1751344234631,-460.0,0.0001816,2]
[368747165,1751344234645,-460.0,0.0001816,2]
[368747166,1751344234658,-461.6560653,0.0001816,2]
[368747167,1751344234673,-460.0,0.0001816,2]
[368747168,1751344234688,-460.0,0.0001816,2]
[368747169,1751344234702,-460.0,0.0001816,2]
[368747170,1751344234713,-460.0,0.0001816,2]
[368747171,1751344234727,-460.0,0.0001816,2]
[368747172,1751344234741,-460.0,0.0001816,2]
[368747173,1751344234756,-680.43,0.0001816,2]
[368747174,1751344234773,-460.0,0.0001816,2]
[368747175,1751344234789,-460.0,0.0001816,2]
[368747176,1751344234806,-460.0,0.0001816,2]
[368747177,1751344234823,-460.93496117,0.0001816,2]
[368747178,1751344234836,-460.0,0.0001816,2]
[368747179,1751344234848,-460.0,0.0001816,2]
[368747180,1751344234859,-460.0,0.0001816,2]
[368747181,1751344234873,-460.0,0.0001816,2]
[368747182,1751344234889,-460.0,0.0001816,2]
[368747183,1751344234905,-460.0,0.0001816,2]
[368747184,1751344234917,-461.33323165,0.0001816,2]
[368747185,1751344234929,-460.0,0.0001816,2]
[368747186,1751344234944,-500.0,0.0001816,2]
[368747187,1751344234959,-471.41450866,0.0001816,2]
[368747188,1751344234972,-500.0,0.0001816,2]
[368747189,1751344234984,-500.0,0.0001816,2]
[368747190,1751344234996,-500.0,0.0001816,2]
[368747191,1751344235010,-500.0,0.0001816,2]
[368747192,1751344235023,-500.0,0.0001816,2]
[368747193,1751344235036,-500.0,0.0001816,2]
[368747194,1751344235051,-500.0,0.0001816,2]
[368747195,1751344235063,-500.0,0.0001816,2]
[368747196,1751344235078,-153.5800719,0.0001816,2]
[368747197,1751344235091,-500.0,0.0001816,2]
[368747198,1751344235103,-500.0,0.0001816,2]
[368747199,1751344235116,-500.0,0.0001816,2]
[368747200,1751344235130,-500.0,0.0001816,2]
[368747201,1751344235144,-500.0,0.0001816,2]
[368747202,1751344235157,-500.0,0.0001816,2]
[368747203,1751344235170,-500.0,0.0001816,2]
[368747204,1751344235184,-228.85465934,0.0001816,2]
[368747205,1751344235197,-500.0,0.0001816,2]
[368747206,1751344235209,-370.82341898,0.0001816,2]
[368747207,1751344235221,-500.0,0.0001816,2]
[368747208,1751344235234,-500.0,0.0001816,2]
[368747209,1751344235247,-392.13719726,0.00018161,2]
[368747210,1751344235260,-274.48914929,0.00018161,2]
[368747211,1751344235272,-460.0,0.00018161,2]
[368747212,1751344235285,-460.0,0.00018161,2]
[368747213,1751344235297,-460.0,0.00018161,2]
[368747214,1751344235310,-460.0,0.00018161,2]
[368747215,1751344235324,-460.0,0.00018161,2]
[368747216,1751344235337,-460.0,0.00018161,2]
[368747217,1751344235349,-460.0,0.00018161,2]
[368747218,1751344235362,-460.0,0.00018161,2]
[368747219,1751344235377,-406.04010777,0.00018161,2]
[368747220,1751344235389,-460.0,0.00018161,2]
[368747221,1751344235403,-460.0,0.00018161,2]
[368747222,1751344235415,-460.0,0.00018161,2]
[368747223,1751344235428,-460.0,0.00018161,2]
[368747224,1751344235442,-460.0,0.00018161,2]
[368747225,1751344235455,-460.0,0.00018161,2]
[368747226,1751344235468,-460.0,0.00018161,2]
[368747227,1751344235481,-460.0,0.00018161,2]
[368747228,1751344235495,-460.0,0.00018161,2]
[368747229,1751344235508,-460.0,0.00018161,2]
[368747230,1751344235520,-460.0,0.00018161,2]
[368747231,1751344235533,-460.0,0.00018161,2]
[368747232,1751344235548,-460.0,0.00018161,2]
[368747233,1751344235561,-460.0,0.00018161,2]
[368747234,1751344235575,-460.0,0.00018161,2]
[368747235,1751344235587,-460.0,0.00018161,2]
[368747236,1751344235602,-460.0,0.00018161,2]
[368747237,1751344235616,-460.0,0.00018161,2]
[368747238,1751344235629,-495.18722358,0.00018161,2]
[368747239,1751344235644,-460.0,0.00018161,2]
[368747240,1751344235657,-460.0,0.00018161,2]
[368747241,1751344235823,-374.44422361,0.00018161,2]
[368747242,1751344235840,-460.0,0.00018161,2]
[368747243,1751344235850,-460.0,0.00018161,2]
[368747244,1751344235859,-460.0,0.00018161,2]
[368747245,1751344235869,-460.0,0.00018161,2]
[368747246,1751344235879,-460.0,0.00018161,2]
[368747247,1751344235890,-460.0,0.00018161,2]
[368747248,1751344235899,-460.0,0.00018161,2]
[368747249,1751344235909,-460.0,0.00018161,2]
[368747250,1751344235919,-460.0,0.00018161,2]
[368747251,1751344235929,-460.0,0.00018161,2]
[368747252,1751344235940,-460.0,0.00018161,2]
[368747253,1751344235958,-500.0,0.00018161,2]
[368747254,1751344235967,-460.0,0.00018161,2]
[368747255,1751344235978,-460.0,0.00018161,2]
[368747256,1751344235988,-460.0,0.00018161,2]
[368747257,1751344235998,-460.0,0.00018161,2]
[368747258,1751344236007,-454.82861567,0.00018161,2]
[368747259,1751344236017,-460.0,0.00018161,2]
[368747260,1751344236026,-460.0,0.00018161,2]
[368747261,1751344236036,-460.0,0.00018161,2]
[368747262,1751344236045,-460.0,0.00018161,2]
[368747263,1751344236055,-460.0,0.00018161,2]
[368747264,1751344236065,-460.0,0.00018161,2]
[368747265,1751344236076,-460.0,0.00018161,2]
[368747266,1751344236088,-460.0,0.00018161,2]
[368747267,1751344236097,-504.93797022,0.00018161,2]
[368747268,1751344236108,-460.0,0.00018161,2]
[368747269,1751344236117,-460.74298346,0.00018161,2]
[368747270,1751344236126,-460.0,0.00018161,2]
[368747271,1751344236136,-460.0,0.00018161,2]
[368747272,1751344236146,-500.0,0.00018161,2]
[368747273,1751344236155,-500.0,0.00018161,2]
[368747274,1751344236165,-854.47,0.00018161,2]
[368747275,1751344236175,-460.0,0.00018161,2]
[368747276,1751344236185,-460.0,0.00018161,2]
[368747277,1751344236195,-460.0,0.00018161,2]
[368747278,1751344236204,-460.0,0.00018161,2]
[368747279,1751344236214,-460.0,0.00018161,2]
[368747280,1751344236224,-460.0,0.00018161,2]
[368747281,1751344236233,-460.0,0.00018161,2]
[368747282,1751344236243,-460.0,0.00018161,2]
[368747283,1751344236253,-1267.78,0.00018161,2]
[368747284,1751344236262,-462.2753341,0.00018161,2]
[368747285,1751344236273,-460.0,0.00018161,2]
[368747286,1751344236283,-460.0,0.00018161,2]
[368747287,1751344236292,-500.0,0.00018161,2]
[368747288,1751344236303,-500.0,0.00018161,2]
[368747289,1751344236312,-460.0,0.00018161,2]
[368747290,1751344236322,-460.0,0.00018161,2]
[368747291,1751344236331,-460.0,0.00018161,2]
[368747292,1751344236341,-1284.89,0.00018161,2]
[368747293,1751344236351,-500.0,0.00018161,2]
[368747294,1751344236361,-747.0,0.00018161,2]
[368747295,1751344236370,-460.0,0.00018161,2]
[368747296,1751344236381,-460.0,0.00018161,2]
[368747297,1751344236390,-460.0,0.00018161,2]
[368747298,1751344236400,-460.0,0.00018161,2]
[368747299,1751344236409,-460.0,0.00018161,2]
[368747300,1751344236419,-1662.44,0.00018161,2]
[368747301,1751344236428,-460.0,0.00018161,2]
[368747302,1751344236437,-460.0,0.00018161,2]
[368747303,1751344236447,-460.0,0.00018161,2]
[368747304,1751344236456,-460.0,0.00018161,2]
[368747305,1751344236465,-460.0,0.00018161,2]
[368747306,1751344236475,-460.0,0.00018161,2]
[368747307,1751344236484,-599.19653267,0.00018161,2]
[368747308,1751344236494,-460.0,0.00018161,2]
[368747309,1751344236504,-756.27,0.00018161,2]
[368747310,1751344236513,-868.88,0.00018161,2]
[368747311,1751344236523,-368.92182848,0.00018161,2]
[368747312,1751344236539,-499.95817152,0.00018161,2]
[368747313,1751344236549,-868.88,0.00018161,2]
[368747314,1751344236559,-671.42879875,0.00018161,2]
[368747315,1751344236571,-197.45120125,0.00018161,2]
[368747316,1751344236580,-460.0,0.00018161,2]
[368747317,1751344236590,-79.68879875,0.00018161,2]
[368747318,1751344236606,-380.31120125,0.00018161,2]
[368747319,1751344236615,-460.0,0.00018161,2]
[368747320,1751344236625,-41.15493771,0.00018161,2]
[368747321,1751344236638,-418.84506229,0.00018161,2]
[368747322,1751344236648,-1744.44,0.00018161,2]
[368747323,1751344236657,-460.0,0.00018161,2]
[368747324,1751344236667,-460.0,0.00018161,2]
[368747325,1751344236677,-460.0,0.00018161,2]
[368747326,1751344236686,-460.0,0.00018161,2]
[368747327,1751344236695,-460.0,0.00018161,2]
[368747328,1751344236704,-460.0,0.00018161,2]
[368747329,1751344236714,-460.0,0.00018161,2]
[368747330,1751344236723,-460.0,0.00018161,2]
[368747331,1751344236734,-2986.63,0.00018161,2]
[368747332,1751344236743,-460.0,0.00018161,2]
[368747333,1751344236753,-460.0,0.00018161,2]
[368747334,1751344236763,-500.0,0.00018161,2]
[368747335,1751344236772,-460.0,0.00018162,2]
[368747336,1751344236783,-460.0,0.00018162,2]
[368747337,1751344236793,-460.0,0.00018162,2]
[368747338,1751344236802,-460.0,0.00018162,2]
[368747339,1751344236812,-13.1919788,0.00018162,2]
[368747340,1751344236824,-262.25994684,0.00018162,2]
[368747341,1751344238607,-460.0,0.00018158,2]
[368747342,1751344238617,-460.0,0.0001816,2]
[368747343,1751344238627,-462.16770111,0.0001816,2]
[368747344,1751344238637,-184.54807436,0.00018162,2]
[368747345,1751344238647,-460.0,0.00018162,2]
[368747346,1751344238656,-460.0,0.00018162,2]
[368747347,1751344238666,-460.0,0.00018162,2]
[368747348,1751344238676,-508.51,0.00018162,2]
[368747349,1751344238685,-460.0,0.00018162,2]
[368747350,1751344238694,-460.0,0.00018162,2]
[368747351,1751344238704,-460.0,0.00018162,2]
[368747352,1751344238713,-460.0,0.00018162,2]
[368747353,1751344238723,-460.0,0.00018162,2]
[368747354,1751344238734,-461.12183851,0.00018162,2]
[368747355,1751344238743,-460.0,0.00018162,2]
[368747356,1751344238753,-460.0,0.00018162,2]
[368747357,1751344238762,-435.19951002,0.00018162,2]
[368747358,1751344238772,-356.47263302,0.00018162,2]
[368747359,1751344238781,-504.89016398,0.00018162,2]
[368747360,1751344238791,-460.0,0.00018162,2]
[368747361,1751344238801,-460.0,0.00018162,2]
[368747362,1751344238810,-460.0,0.00018162,2]
[368747363,1751344238820,-460.0,0.00018162,2]
[368747364,1751344238829,-460.55148371,0.00018162,2]
[368747365,1751344238839,-460.0,0.00018162,2]
[368747366,1751344238848,-460.0,0.00018162,2]
[368747367,1751344238858,-403.69484801,0.00018162,2]
[368747368,1751344238867,-460.0,0.00018162,2]
[368747369,1751344238877,-460.0,0.00018162,2]
[368747370,1751344238887,-460.0,0.00018162,2]
[368747371,1751344238897,-460.0,0.00018162,2]
[368747372,1751344238907,-460.0,0.00018162,2]
[368747373,1751344238917,-460.0,0.00018162,2]
[368747374,1751344238927,-465.70405257,0.00018162,2]
[368747375,1751344238936,-460.0,0.00018162,2]
[368747376,1751344238950,-466.24313728,0.00018162,2]
[368747377,1751344238959,-486.81436203,0.00018162,2]
[368747378,1751344238983,-460.0,0.00018162,2]
[368747379,1751344238994,-460.0,0.00018162,2]
[368747380,1751344239004,-433.12588991,0.00018162,2]
[368747381,1751344239015,-460.0,0.00018162,2]
[368747382,1751344239026,-460.0,0.00018162,2]
[368747383,1751344239036,-460.0,0.00018162,2]
[368747384,1751344239047,-460.0,0.00018162,2]
[368747385,1751344239058,-461.58923171,0.00018162,2]
[368747386,1751344239068,-460.0,0.00018162,2]
[368747387,1751344239079,-460.0,0.00018162,2]
[368747388,1751344239091,-460.0,0.00018162,2]
[368747389,1751344239103,-460.0,0.00018162,2]
[368747390,1751344239113,-467.31786518,0.00018162,2]
[368747391,1751344239123,-460.0,0.00018162,2]
[368747392,1751344239133,-460.0,0.00018162,2]
[368747393,1751344239143,-460.0,0.00018162,2]
[368747394,1751344239153,-460.0,0.00018162,2]
[368747395,1751344239163,-460.0,0.00018162,2]
[368747396,1751344239175,-460.0,0.00018162,2]
[368747397,1751344239186,-460.0,0.00018162,2]